bitfinex-derivatives/quotes_BTCF0:USTF0_20210708
["timestamp","ask_amount","ask_price","bid_price","bid_amount"]
[1625709746565,1.22503787,33272.0,33271.0,10.27020424]
[1625709746716,0.49573787,33272.0,33271.0,10.27020424]
[1625709746866,0.08762328,33272.0,33271.0,11.86929958]
[1625709747017,0.001,33273.0,33271.0,11.86929958]
[1625709747167,0.06778964,33275.0,33271.0,12.36929958]
[1625709747317,0.70006407,33277.0,33272.0,6.00497728]
[1625709747468,0.70006407,33277.0,33273.0,0.06944115]
[1625709747618,0.002,33278.0,33276.0,5.9919482]
[1625709747773,0.002,33278.0,33277.0,6.060928]
[1625709747918,0.51037513,33284.0,33277.0,6.560928]
[1625709748069,1.05692701,33288.0,33283.0,0.72172632]
[1625709748221,1.05692701,33288.0,33287.0,3.69988899]
[1625709748368,1.05692701,33288.0,33287.0,3.75688899]
[1625709748520,1.05692701,33288.0,33287.0,9.07567916]
[1625709749345,1.05692701,33288.0,33287.0,7.66619764]
[1625709749495,0.004,33288.0,33287.0,7.66619764]
[1625709750097,0.004,33288.0,33287.0,7.90677308]
[1625709750247,1.0552604,33288.0,33287.0,7.90677308]
[1625709751375,0.004,33288.0,33287.0,7.90677308]
[1625709752125,0.004,33288.0,33287.0,9.31401327]
[1625709752277,0.004,33288.0,33287.0,10.89709328]
[1625709753251,0.004,33288.0,33287.0,9.40341327]
[1625709753851,0.004,33288.0,33287.0,10.98470287]
[1625709755204,1.05182041,33297.0,33287.0,10.98470287]
[1625709755354,0.004,33288.0,33287.0,9.40341327]
[1625709755655,0.004,33288.0,33287.0,9.3993231]
[1625709755805,0.004,33288.0,33287.0,9.40341235]
[1625709756104,0.004,33288.0,33287.0,10.98310247]
[1625709757382,0.004,33288.0,33287.0,9.40341235]
[1625709757606,0.004,33288.0,33287.0,9.91576991]
[1625709757909,0.005,33293.0,33287.0,11.49394139]
[1625709758057,0.005,33293.0,33292.0,0.72172632]
[1625709758207,0.005,33293.0,33292.0,6.84712148]
[1625709758356,0.005,33293.0,33292.0,6.85119207]
[1625709759109,0.005,33293.0,33292.0,6.84712148]
[1625709759258,1.04933864,33308.0,33292.0,5.36006493]
[1625709759408,0.002,33295.0,33292.0,3.25788517]
[1625709759708,0.002,33295.0,33294.0,3.67812693]
[1625709759858,0.002,33295.0,33294.0,4.23512693]
[1625709766537,0.002,33295.0,33294.0,3.73512693]
[1625709767212,0.002,33295.0,33294.0,4.23512693]
[1625709767362,0.002,33295.0,33294.0,2.33393572]
[1625709767662,0.002,33295.0,33294.0,1.10789341]
[1625709768348,0.002,33295.0,33294.0,0.057]
[1625709768490,0.002,33295.0,33293.0,1.10454024]
[1625709769239,0.002,33295.0,33293.0,0.057]
[1625709769389,0.001,33297.0,33293.0,0.057]
[1625709769540,0.001,33297.0,33293.0,1.10428165]
[1625709769690,0.001,33297.0,33293.0,0.057]
[1625709770140,0.001,33297.0,33296.0,5.39577544]
[1625709770367,0.001,33297.0,33296.0,5.45277544]
[1625709771421,0.001,33297.0,33296.0,5.95277544]
[1625709774273,0.001,33297.0,33296.0,5.45277544]
[1625709774948,0.001,33297.0,33296.0,5.80158178]
[1625709775101,0.001,33297.0,33296.0,5.80565155]
[1625709776905,0.001,33297.0,33296.0,6.39455155]
[1625709777054,0.001,33297.0,33296.0,6.04574521]
[1625709777203,0.001,33297.0,33296.0,5.45684521]
[1625709777354,0.001,33297.0,33296.0,5.80561492]
[1625709778028,0.001,33297.0,33296.0,5.45684521]
[1625709778329,0.001,33297.0,33296.0,5.80561559]
[1625709778478,0.001,33297.0,33296.0,5.45684521]
[1625709779456,0.001,33299.0,33296.0,5.45684521]
[1625709779904,0.001,33299.0,33297.0,0.35281457]
[1625709780054,0.001,33299.0,33298.0,0.057]
[1625709780204,0.001,33299.0,33298.0,0.53815088]
[1625709780356,0.001,33299.0,33298.0,0.54222236]
[1625709782693,0.001,33299.0,33298.0,1.04222236]
[1625709782837,0.001,33299.0,33298.0,2.0885237]
[1625709783131,0.001,33299.0,33298.0,1.5885237]
[1625709783432,0.001,33299.0,33298.0,0.54222236]
[1625709783583,0.001,33299.0,33298.0,1.04222236]
[1625709783732,0.001,33299.0,33298.0,2.08830593]
[1625709784033,0.001,33299.0,33298.0,1.04222236]
[1625709784485,0.001,33299.0,33298.0,2.08840125]
[1625709784633,0.001,33299.0,33298.0,2.03140125]
[1625709784936,0.001,33299.0,33298.0,2.04023375]
[1625709785311,0.001,33299.0,33298.0,3.26071233]
[1625709785461,0.001,33301.0,33298.0,3.26071233]
[1625709785760,0.001,33301.0,33300.0,1.04592119]
[1625709786061,0.001,33301.0,33300.0,1.54999194]
[1625709786360,0.001,33301.0,33300.0,1.79056738]
[1625709786812,0.001,33301.0,33300.0,1.79939921]
[1625709787338,0.001,33301.0,33300.0,3.01974455]
[1625709788388,0.001,33301.0,33300.0,1.79056738]
[1625709790189,0.001,33301.0,33300.0,3.01103696]
[1625709791088,0.001,33301.0,33300.0,1.79056738]
[1625709791315,0.001,33301.0,33300.0,3.01137798]
[1625709792369,0.001,33301.0,33300.0,3.02020903]
[1625709792518,0.002,33306.0,33300.0,4.41520502]
[1625709792667,0.002,33306.0,33301.0,0.057]
[1625709792818,0.002,33306.0,33303.0,1.04623992]
[1625709792967,0.002,33306.0,33304.0,0.5]
[1625709793268,0.002,33306.0,33304.0,0.50406982]
[1625709793418,0.002,33306.0,33305.0,0.00406976]
[1625709794321,0.002,33306.0,33305.0,0.48522064]
[1625709794471,0.002,33306.0,33305.0,0.98522064]
[1625709796272,0.002,33306.0,33305.0,2.03242086]
[1625709797326,0.001,33308.0,33305.0,2.03242086]
[1625709797476,0.001,33308.0,33307.0,4.6868]
[1625709797631,0.001,33308.0,33307.0,5.1868]
[1625709797778,0.001,33308.0,33307.0,6.23396366]
[1625709797928,0.001,33308.0,33307.0,8.85585649]
[1625709798228,0.001,33308.0,33307.0,7.45968395]
[1625709798378,0.001,33308.0,33307.0,7.70025939]
[1625709798526,0.001,33308.0,33307.0,7.78945939]
[1625709799280,0.001,33308.0,33307.0,9.18625789]
[1625709805210,0.001,33308.0,33307.0,10.18625789]
[1625709805363,0.001,33308.0,33307.0,11.76180824]
[1625709805661,0.001,33308.0,33307.0,10.76180824]
[1625709806265,0.001,33310.0,33307.0,10.76180824]
[1625709806413,0.001,33310.0,33309.0,3.91641954]
[1625709806563,0.001,33310.0,33309.0,4.74182954]
[1625709806939,0.001,33310.0,33309.0,4.74589882]
[1625709807993,0.001,33310.0,33309.0,5.44560253]
[1625709810016,0.001,33310.0,33309.0,7.01895274]
[1625709810166,0.001,33310.0,33309.0,5.44560253]
[1625709811142,0.001,33310.0,33309.0,7.01790213]
[1625709815272,0.001,33312.0,33309.0,7.01790213]
[1625709815573,0.001,33312.0,33311.0,4.37704125]
[1625709816024,0.001,33312.0,33311.0,4.38111276]
[1625709816474,0.001,33312.0,33311.0,4.6216882]
[1625709817751,0.001,33312.0,33311.0,4.9572382]
[1625709818052,0.001,33312.0,33311.0,6.53219849]
[1625709818203,0.001,33312.0,33311.0,4.9572382]
[1625709820157,0.001,33312.0,33311.0,4.6216882]
[1625709820460,0.001,33312.0,33311.0,3.221035]
[1625709820608,0.35248377,33312.0,33311.0,3.221035]
[1625709820834,0.35248377,33312.0,33311.0,1.99546345]
[1625709820985,0.61184377,33312.0,33311.0,1.99546345]
[1625709821586,0.26036,33312.0,33311.0,3.22442045]
[1625709822036,0.26036,33312.0,33311.0,4.62841737]
[1625709822186,0.001,33312.0,33311.0,4.62841737]
[1625709822937,0.001,33312.0,33311.0,3.22442045]
[1625709823237,0.001,33312.0,33311.0,4.62983539]
[1625709825039,0.001,33312.0,33311.0,3.22442045]
[1625709825729,0.35196769,33312.0,33311.0,3.22442045]
[1625709825941,0.35196769,33312.0,33311.0,1.99546345]
[1625709826243,0.35196769,33312.0,33311.0,3.22551765]
[1625709826467,0.001,33312.0,33311.0,1.99546345]
[1625709827154,1.75440592,33312.0,33311.0,0.94497355]
[1625709827443,1.75340592,33312.0,33311.0,0.94497355]
[1625709827818,2.97965346,33312.0,33311.0,0.59615352]
[1625709828946,2.97965346,33312.0,33311.0,0.24464695]
[1625709829246,2.97965346,33312.0,33311.0,0.94794705]
[1625709830298,2.97965346,33312.0,33311.0,0.35165098]
[1625709830598,9.10737783,33312.0,33310.0,0.35166751]
[1625709830748,3.68365212,33311.0,33310.0,0.35166751]
[1625709831048,3.68365212,33311.0,33310.0,0.35573919]
[1625709831800,3.68365212,33311.0,33307.0,1.29657797]
[1625709832100,3.68365212,33311.0,33308.0,0.00407191]
[1625709832250,1.40481867,33310.0,33308.0,0.00407191]
[1625709832401,2.28295256,33309.0,33308.0,0.00407191]
[1625709832550,2.523528,33309.0,33308.0,0.00407191]
[1625709833151,1.29425936,33309.0,33308.0,1.05928042]
[1625709834279,1.29425936,33309.0,33308.0,2.29050315]
[1625709834731,0.24057544,33309.0,33308.0,2.29050315]
[1625709835258,0.24057544,33309.0,33308.0,3.6979277]
[1625709836687,0.24057544,33309.0,33308.0,3.93850314]
[1625709836910,0.24057544,33309.0,33308.0,4.46618598]
[1625709837362,0.24057544,33309.0,33308.0,6.04961732]
[1625709837812,0.24057544,33309.0,33308.0,6.31573732]
[1625709838114,0.001,33311.0,33308.0,6.40633732]
[1625709838265,0.001,33311.0,33310.0,5.79810147]
[1625709838415,0.001,33311.0,33310.0,5.81046864]
[1625709838715,0.001,33311.0,33310.0,6.05511175]
[1625709838865,0.001,33311.0,33310.0,8.3090976]
[1625709839315,0.52813628,33320.0,33310.0,8.3090976]
[1625709839465,0.002,33316.0,33311.0,0.06934443]
[1625709839615,0.002,33316.0,33315.0,5.78714334]
[1625709839765,0.002,33316.0,33315.0,6.06088731]
[1625709840067,0.002,33316.0,33315.0,6.06495433]
[1625709840668,0.002,33316.0,33315.0,6.54610521]
[1625709840814,0.002,33316.0,33315.0,6.63690521]
[1625709841265,0.002,33316.0,33315.0,6.54610521]
[1625709842543,1.05584699,33322.0,33315.0,6.54610521]
[1625709842544,0.002,33317.0,33315.0,6.54610521]
[1625709842692,0.002,33317.0,33316.0,0.25294356]
[1625709842845,0.002,33317.0,33316.0,6.04947567]
[1625709842994,0.002,33317.0,33316.0,6.05354247]
[1625709845246,1.05533501,33325.0,33316.0,6.05354247]
[1625709845247,0.001,33320.0,33316.0,6.05354247]
[1625709845398,0.001,33320.0,33317.0,0.01234371]
[1625709845547,0.001,33320.0,33319.0,5.78715914]
[1625709845848,0.001,33320.0,33319.0,4.20884301]
[1625709845997,0.001,33320.0,33319.0,4.21290494]
[1625709846747,0.001,33320.0,33319.0,4.45348038]
[1625709851704,0.001,33320.0,33319.0,4.69650038]
[1625709852007,0.001,33320.0,33319.0,4.69243845]
[1625709852305,0.001,33320.0,33319.0,4.69650285]
[1625709853580,0.001,33320.0,33319.0,4.75350285]
[1625709857262,0.52844782,33323.0,33319.0,4.75350285]
[1625709857484,0.52844782,33323.0,33322.0,2.80396988]
[1625709857635,0.52844782,33323.0,33322.0,8.08166988]
[1625709857783,0.001,33323.0,33322.0,9.53977039]
[1625709858083,0.001,33323.0,33322.0,9.54383473]
[1625709858235,0.001,33323.0,33322.0,9.53977039]
[1625709858759,0.001,33323.0,33322.0,9.78034583]
[1625709859135,0.001,33323.0,33322.0,9.7844058]
[1625709859585,0.001,33323.0,33322.0,8.38330529]
[1625709859811,0.001,33323.0,33322.0,9.78008918]
[1625709860110,0.001,33323.0,33322.0,8.38330529]
[1625709860262,0.001,33323.0,33322.0,8.37924532]
[1625709860485,0.001,33323.0,33322.0,8.38330533]
[1625709861161,0.001,33323.0,33322.0,8.32630533]
[1625709861685,0.001,33323.0,33322.0,8.38330533]
[1625709863637,0.001,33323.0,33322.0,9.77774481]
[1625709866416,0.001,33326.0,33322.0,9.77774481]
[1625709866566,0.001,33326.0,33325.0,1.39227278]
[1625709866716,0.001,33326.0,33325.0,4.23381835]
[1625709866865,0.001,33326.0,33325.0,4.7190328]
[1625709867316,0.001,33326.0,33325.0,4.73125764]
[1625709867469,0.001,33326.0,33325.0,6.29555876]
[1625709867620,0.001,33326.0,33325.0,6.79555876]
[1625709867767,0.001,33326.0,33325.0,6.80438476]
[1625709867918,0.002,33331.0,33325.0,6.80438476]
[1625709868068,0.002,33331.0,33326.0,0.01221297]
[1625709868219,0.002,33331.0,33330.0,5.72919477]
[1625709868368,0.002,33331.0,33330.0,5.78619477]
[1625709868519,0.003,33336.0,33330.0,5.79025766]
[1625709868668,0.003,33336.0,33335.0,2.77373794]
[1625709868818,0.003,33336.0,33335.0,3.90054426]
[1625709869118,0.003,33336.0,33335.0,3.90460703]
[1625709869421,0.003,33336.0,33335.0,5.79056859]
[1625709869867,0.004,33341.0,33335.0,5.79056859]
[1625709870172,0.004,33341.0,33340.0,1.55805206]
[1625709870319,0.004,33341.0,33340.0,5.58945206]
[1625709870469,0.004,33341.0,33340.0,6.8002385]
[1625709870619,0.004,33341.0,33340.0,6.80430011]
[1625709870770,0.004,33341.0,33340.0,5.59351367]
[1625709870920,0.004,33341.0,33340.0,6.07466455]
[1625709871221,0.004,33341.0,33340.0,7.2844968]
[1625709871746,0.004,33341.0,33340.0,7.3739968]
[1625709871896,0.005,33346.0,33340.0,7.3739968]
[1625709872198,0.005,33346.0,33344.0,0.51846687]
[1625709872348,0.005,33347.0,33345.0,0.057]
[1625709872499,0.005,33347.0,33345.0,0.0610611]
[1625709872800,0.005,33347.0,33346.0,0.48115088]
[1625709872948,0.005,33347.0,33346.0,0.53815088]
[1625709873398,0.005,33347.0,33346.0,0.48115088]
[1625709874824,0.005,33347.0,33346.0,0.53815088]
[1625709876925,0.005,33347.0,33346.0,0.48115088]
[1625709877676,1.57732826,33347.0,33346.0,0.48115088]
[1625709877979,0.52916764,33347.0,33346.0,0.48115088]
[1625709878127,0.005,33347.0,33346.0,0.48115088]
[1625709878878,0.24557544,33347.0,33346.0,0.48115088]
[1625709879328,0.24057544,33347.0,33346.0,0.48115088]
[1625709882181,0.76425362,33347.0,33346.0,0.48115088]
[1625709882333,0.76425362,33347.0,33344.0,0.001]
[1625709882482,0.24057544,33347.0,33344.0,0.001]
[1625709882631,0.76418601,33347.0,33344.0,0.001]
[1625709882931,0.24057544,33345.0,33344.0,0.001]
[1625709889314,0.24057544,33345.0,33342.0,0.001]
[1625709892241,0.44991544,33345.0,33342.0,0.001]
[1625709893519,0.44991544,33345.0,33343.0,0.00407639]
[1625709893669,0.24057544,33345.0,33343.0,0.00407639]
[1625709895770,0.24057544,33345.0,33342.0,0.00407639]
[1625709895923,0.24057544,33345.0,33344.0,0.00407648]
[1625709896297,0.24057544,33345.0,33342.0,0.00407648]
[1625709896597,0.24057544,33345.0,33344.0,0.0040765]
[1625709896746,0.24057544,33345.0,33343.0,0.0040765]
[1625709897046,0.24057544,33345.0,33341.0,0.001]
[1625709897047,0.24057544,33345.0,33342.0,0.0040765]
[1625709898023,0.4156616,33345.0,33342.0,0.0040765]
[1625709898325,0.24057544,33345.0,33342.0,0.0040765]
[1625709898775,0.41566667,33345.0,33342.0,0.0040765]
[1625709900426,0.24057544,33345.0,33342.0,0.0040765]
[1625709901326,0.24057544,33345.0,33342.0,0.17760059]
[1625709901626,0.24057544,33345.0,33343.0,0.00407625]
[1625709901927,0.24057544,33345.0,33342.0,0.00407821]
[1625709902228,0.24057544,33345.0,33344.0,0.00407821]
[1625709902378,0.24057544,33345.0,33343.0,0.00407815]
[1625709903734,0.24057544,33345.0,33343.0,0.17759565]
[1625709903879,0.24057544,33345.0,33344.0,0.057]
[1625709904035,0.24057544,33345.0,33344.0,0.06107801]
[1625709906656,0.24057544,33345.0,33344.0,0.00407801]
[1625709907113,0.24057544,33345.0,33344.0,0.24465345]
[1625709907413,0.24057544,33345.0,33344.0,0.24057544]
[1625709907558,0.41572587,33345.0,33344.0,0.24465361]
[1625709908008,0.24057544,33345.0,33344.0,0.24465361]
[1625709908308,0.24057544,33345.0,33344.0,0.00407817]
[1625709908609,0.41575592,33345.0,33344.0,0.00407817]
[1625709908773,0.43137457,33345.0,33343.0,0.00407831]
[1625709908935,0.43137457,33345.0,33344.0,0.00407834]
[1625709908936,1.09487482,33345.0,33344.0,0.00407834]
[1625709909060,1.79510605,33345.0,33344.0,0.00407834]
[1625709909209,1.79510605,33345.0,33338.0,0.52123128]
[1625709909210,7.13070605,33345.0,33338.0,0.52123128]
[1625709909513,7.13070605,33345.0,33344.0,0.00407647]
[1625709909678,5.90527409,33345.0,33344.0,0.00407647]
[1625709909809,5.90527409,33345.0,33339.0,0.00407215]
[1625709909810,0.01563933,33344.0,33339.0,0.00407215]
[1625709909961,7.86760263,33345.0,33339.0,0.00407215]
[1625709910113,6.64211088,33345.0,33344.0,0.00407199]
[1625709910263,6.62647192,33345.0,33340.0,0.00507197]
[1625709910413,7.85209525,33345.0,33340.0,0.00507197]
[1625709910565,2.51649525,33345.0,33341.0,0.00407194]
[1625709910718,1.2259096,33344.0,33341.0,0.00407194]
[1625709911011,0.48115088,33342.0,33341.0,0.00407194]
[1625709912138,0.48115088,33342.0,33341.0,0.52476674]
[1625709912817,0.48115088,33342.0,33341.0,0.00407194]
[1625709913567,0.48115088,33342.0,33341.0,0.5248119]
[1625709914542,0.48115088,33342.0,33341.0,1.21926812]
[1625709916722,0.48115088,33342.0,33341.0,0.00407194]
[1625709917170,0.48115088,33342.0,33341.0,0.5252397]
[1625709917321,0.48115088,33342.0,33341.0,0.8589597]
[1625709917469,0.48115088,33342.0,33341.0,1.55385163]
[1625709918295,0.48115088,33342.0,33341.0,0.8589597]
[1625709918676,0.48115088,33342.0,33341.0,1.55449269]
[1625709919273,0.48115088,33342.0,33341.0,0.8589597]
[1625709919422,0.48115088,33342.0,33341.0,0.5252397]
[1625709919572,0.48115088,33342.0,33341.0,1.22109287]
[1625709919724,1.00762891,33342.0,33341.0,1.22109287]
[1625709920473,1.70961181,33342.0,33341.0,0.5252397]
[1625709920624,2.76304345,33342.0,33341.0,1.2215965]
[1625709921749,2.76304345,33342.0,33340.0,0.2643317]
[1625709921902,2.76304345,33342.0,33339.0,5.2937]
[1625709921903,3.01433345,33342.0,33341.0,1.04500209]
[1625709922200,3.01433345,33342.0,33339.0,6.5128691]
[1625709922201,4.24429516,33342.0,33339.0,3.2921]
[1625709922352,1.23003714,33341.0,33338.0,0.001]
[1625709922576,0.73244088,33342.0,33338.0,0.001]
[1625709922577,1.23112959,33340.0,33338.0,1.22249785]
[1625709922734,1.23112959,33340.0,33339.0,0.00406782]
[1625709923102,1.47170503,33340.0,33339.0,0.00406782]
[1625709923851,2.87869733,33340.0,33339.0,0.00406782]
[1625709924151,1.47170503,33340.0,33339.0,0.00406782]
[1625709924602,2.87981199,33340.0,33339.0,0.00406782]
[1625709924752,1.47170503,33340.0,33339.0,1.22603166]
[1625709925353,0.24057544,33340.0,33339.0,1.22603166]
[1625709925503,0.24057544,33340.0,33339.0,2.62231938]
[1625709926485,1.47384031,33340.0,33339.0,2.62231938]
[1625709927009,1.47384031,33340.0,33339.0,2.67931938]
[1625709927385,0.24057544,33340.0,33339.0,2.67931938]
[1625709930914,1.47408234,33340.0,33339.0,2.67931938]
[1625709933390,1.47408234,33340.0,33339.0,2.62231938]
[1625709933917,2.88406138,33340.0,33339.0,2.62231938]
[1625709934442,1.47408234,33340.0,33339.0,2.62231938]
[1625709934594,2.88419879,33340.0,33339.0,2.62231938]
[1625709935193,1.47408234,33340.0,33339.0,2.62231938]
[1625709936399,1.47408234,33340.0,33339.0,2.67931938]
[1625709936549,0.24057544,33340.0,33339.0,4.25815967]
[1625709937151,0.24057544,33340.0,33339.0,4.20115967]
[1625709937301,1.47456495,33340.0,33339.0,2.62231938]
[1625709938579,1.76702495,33340.0,33339.0,2.62231938]
[1625709939480,1.76702495,33340.0,33339.0,2.67931938]
[1625709939631,1.47456495,33340.0,33339.0,2.67931938]
[1625709939781,0.24057544,33340.0,33339.0,4.254736]
[1625709939930,1.474623,33340.0,33339.0,2.62231938]
[1625709941733,3.10560365,33340.0,33339.0,2.62231938]
[1625709942559,1.695243,33340.0,33339.0,2.62231938]
[1625709943086,1.474623,33340.0,33339.0,2.62231938]
[1625709944515,2.88496629,33340.0,33339.0,2.62231938]
[1625709945790,2.88496629,33340.0,33339.0,2.61825156]
[1625709946090,2.88496629,33340.0,33339.0,2.62232058]
[1625709948946,2.88496629,33340.0,33339.0,1.22603286]
[1625709950601,2.88496629,33340.0,33339.0,2.62679199]
[1625709951425,2.88496629,33340.0,33339.0,1.22603286]
[1625709951573,2.88496629,33340.0,33339.0,2.62641692]
[1625709951873,3.94255259,33340.0,33339.0,3.67667401]
[1625709953749,2.5322093,33340.0,33339.0,3.67667401]
[1625709954875,2.5322093,33340.0,33339.0,4.00462401]
[1625709955028,2.5322093,33340.0,33339.0,4.06162401]
[1625709955402,1.29816174,33340.0,33339.0,4.06162401]
[1625709955930,1.29816174,33340.0,33339.0,5.63594351]
[1625709957583,1.29816174,33340.0,33339.0,4.06162401]
[1625709957731,2.53188611,33340.0,33339.0,4.06162401]
[1625709958631,1.29816174,33340.0,33339.0,4.06162401]
[1625709958780,2.53187141,33340.0,33339.0,4.06162401]
[1625709958930,2.53187141,33340.0,33339.0,3.73367401]
[1625709959981,1.29816174,33340.0,33339.0,3.73367401]
[1625709960281,1.29816174,33340.0,33339.0,5.30755544]
[1625709960733,1.29816174,33340.0,33339.0,3.73367401]
[1625709961034,2.53191339,33340.0,33339.0,3.73367401]
[1625709961333,2.53191339,33340.0,33339.0,3.72960499]
[1625709961634,2.53191339,33340.0,33339.0,3.73367291]
[1625709962699,2.53191339,33340.0,33339.0,3.67667291]
[1625709963059,3.94197375,33340.0,33339.0,3.67667291]
[1625709965842,2.53191339,33340.0,33339.0,3.67667291]
[1625709966672,3.942405,33340.0,33339.0,3.67667291]
[1625709966823,3.942405,33340.0,33339.0,3.73367291]
[1625709967123,2.53191339,33340.0,33339.0,3.73367291]
[1625709967572,2.53191339,33340.0,33339.0,3.67667291]
[1625709969373,3.94249008,33340.0,33339.0,3.67667291]
[1625709969673,2.53191339,33340.0,33339.0,3.73367291]
[1625709971250,2.53191339,33340.0,33339.0,3.67667291]
[1625709973056,3.94254397,33340.0,33339.0,3.67667291]
[1625709973356,2.53191339,33340.0,33339.0,3.67667291]
[1625709973507,3.9425429,33340.0,33339.0,3.67667291]
[1625709974035,2.53191339,33340.0,33339.0,3.67667291]
[1625709974486,2.53191339,33340.0,33339.0,3.73367291]
[1625709974784,2.53191339,33340.0,33339.0,5.31250761]
[1625709975837,2.53191339,33340.0,33339.0,5.25550761]
[1625709976136,2.53191339,33340.0,33339.0,3.67667291]
[1625709976361,3.94266948,33340.0,33339.0,3.67667291]
[1625709977337,2.53191339,33340.0,33339.0,3.67667291]
[1625709977496,2.86236339,33340.0,33339.0,3.67667291]
[1625709977639,4.27314667,33340.0,33339.0,3.67667291]
[1625709981766,4.27314667,33340.0,33339.0,3.73367291]
[1625709981915,3.56781622,33340.0,33339.0,4.4353889]
[1625709982064,3.56781622,33340.0,33339.0,6.01406824]
[1625709983496,3.56781622,33340.0,33339.0,4.4353889]
[1625709984093,3.56781622,33340.0,33339.0,6.01403423]
[1625709984246,3.56781622,33340.0,33339.0,5.95703423]
[1625709984544,4.97865813,33340.0,33339.0,4.3783889]
[1625709990173,9.26575813,33340.0,33339.0,4.3783889]
[1625709990323,9.2814056,33340.0,33339.0,2.97800484]
[1625709990923,9.26575813,33340.0,33339.0,4.38270469]
[1625709991676,9.26575813,33340.0,33339.0,2.97800484]
[1625709991976,10.86860095,33340.0,33339.0,2.97800484]
[1625709992576,10.86860095,33340.0,33339.0,1.756041]
[1625709994080,10.86860095,33340.0,33339.0,2.98548974]
[1625709994379,9.26575813,33340.0,33339.0,2.98548974]
[1625709994831,9.26575813,33340.0,33339.0,3.04248974]
[1625709994983,9.26575813,33340.0,33339.0,4.44622977]
[1625709995579,9.26575813,33340.0,33339.0,4.38922977]
[1625709996631,9.26575813,33340.0,33339.0,2.98548974]
[1625709997910,9.26575813,33340.0,33339.0,4.38937614]
[1625709998281,9.26575813,33340.0,33339.0,4.48037614]
[1625709998432,9.26575813,33340.0,33339.0,4.38937614]
[1625709999859,9.26575813,33340.0,33339.0,2.98548974]
[1625710001961,10.85250096,33340.0,33339.0,2.98548974]
[1625710003162,9.26575813,33340.0,33339.0,2.98548974]
[1625710004064,10.85238242,33340.0,33339.0,2.98548974]
[1625710005040,9.26575813,33340.0,33339.0,2.98548974]
[1625710007966,9.26575813,33340.0,33339.0,3.25437974]
[1625710012018,9.794667,33340.0,33339.0,3.78113625]
[1625710013521,5.507567,33340.0,33339.0,3.78113625]
[1625710013671,5.177117,33340.0,33339.0,3.83813625]
[1625710014272,3.76627509,33340.0,33339.0,5.24066019]
[1625710014571,2.53252344,33340.0,33339.0,6.81815328]
[1625710014720,2.53252344,33340.0,33339.0,6.83047495]
[1625710015171,1.47493714,33340.0,33339.0,6.83047495]
[1625710015321,1.12208896,33340.0,33339.0,6.83047495]
[1625710015549,0.68144233,33340.0,33339.0,6.83047495]
[1625710015845,0.24057544,33340.0,33339.0,6.8392976]
[1625710015995,0.24057544,33340.0,33339.0,8.58837546]
[1625710017046,0.24057544,33340.0,33339.0,8.57955281]
[1625710017947,0.24057544,33340.0,33339.0,6.83047495]
[1625710018400,0.95716331,33340.0,33339.0,6.56158495]
[1625710018785,0.95716331,33340.0,33339.0,6.54926328]
[1625710018924,1.74963459,33340.0,33339.0,6.54926328]
[1625710019450,1.74963459,33340.0,33339.0,6.49226328]
[1625710019751,2.80638764,33340.0,33339.0,4.91477019]
[1625710022380,2.80638764,33340.0,33339.0,4.97177019]
[1625710022833,1.74963459,33340.0,33339.0,6.54765321]
[1625710022982,1.47363459,33340.0,33339.0,6.78636321]
[1625710026367,1.12136551,33340.0,33339.0,6.7986734]
[1625710027794,0.68108594,33340.0,33339.0,6.7986734]
[1625710028471,1.12118686,33340.0,33339.0,6.7986734]
[1625710028620,1.12118686,33340.0,33339.0,6.78636321]
[1625710029071,1.12118686,33340.0,33339.0,6.54765321]
[1625710029446,0.76887587,33340.0,33339.0,6.54765321]
[1625710031555,1.4731756,33340.0,33339.0,6.54765321]
[1625710032978,0.76887587,33340.0,33339.0,6.54765321]
[1625710033128,1.47315441,33340.0,33339.0,4.97177019]
[1625710035082,1.12108635,33340.0,33339.0,6.54914078]
[1625710035231,1.12108635,33340.0,33339.0,6.77289253]
[1625710035383,0.59278592,33340.0,33339.0,6.76057078]
[1625710035533,1.12100865,33340.0,33339.0,6.76057078]
[1625710035833,1.47304891,33340.0,33339.0,5.18320019]
[1625710036883,1.47304891,33340.0,33339.0,4.97177019]
[1625710038310,1.47304891,33340.0,33339.0,4.98408982]
[1625710038461,0.59277201,33340.0,33339.0,6.56145095]
[1625710038610,0.68094562,33340.0,33339.0,6.56145095]
[1625710038760,0.59277201,33340.0,33339.0,6.56145095]
[1625710038911,0.59277201,33340.0,33339.0,6.54913132]
[1625710039213,0.59277201,33340.0,33339.0,6.56144825]
[1625710039363,0.68094534,33340.0,33339.0,6.56144825]
[1625710039513,0.32874877,33340.0,33339.0,6.56144825]
[1625710039817,0.24057544,33340.0,33339.0,6.56144825]
[1625710040113,0.32874772,33340.0,33339.0,6.56144825]
[1625710040714,0.24057544,33340.0,33339.0,6.56144825]
[1625710046797,0.24057544,33340.0,33339.0,6.57027129]
[1625710047098,0.24057544,33340.0,33339.0,6.56144825]
[1625710053182,0.24057544,33340.0,33339.0,6.57027128]
[1625710054008,0.24057544,33340.0,33339.0,6.56144825]
[1625710055060,0.24057544,33340.0,33339.0,6.57027139]
[1625710057763,0.24057544,33340.0,33339.0,1.65956912]
[1625710058067,0.24057544,33340.0,33339.0,6.57847608]
[1625710061820,0.24057544,33340.0,33339.0,8.33637644]
[1625710062720,0.24057544,33340.0,33339.0,6.57847608]
[1625710063999,0.24057544,33340.0,33339.0,8.33572918]
[1625710075799,0.001,33343.0,33339.0,8.33572918]
[1625710075949,0.001,33343.0,33342.0,0.48115088]
[1625710076101,0.001,33343.0,33342.0,8.81187845]
[1625710076401,0.001,33343.0,33342.0,8.82481837]
[1625710081587,0.002,33348.0,33342.0,8.82481837]
[1625710081888,0.002,33348.0,33347.0,6.7319248]
[1625710082045,0.002,33348.0,33347.0,7.12299651]
[1625710082189,0.002,33348.0,33347.0,7.12711365]
[1625710082340,0.09016463,33349.0,33347.0,7.12711365]
[1625710082492,0.002,33349.0,33348.0,6.49820354]
[1625710082637,0.002,33349.0,33348.0,6.55520354]
[1625710082788,0.002,33349.0,33348.0,6.5593207]
[1625710085414,0.24057544,33351.0,33348.0,6.5593207]
[1625710085565,0.50473905,33351.0,33349.0,0.01228861]
[1625710085714,0.50473905,33351.0,33350.0,10.39316144]
[1625710086016,0.3286886,33351.0,33350.0,10.63785392]
[1625710086165,0.3286886,33351.0,33350.0,10.69485392]